[Event "NOR-chT 2018"]
[Site "Bergen"]
[Date "2018.05.10"]
[Round "1"]
[White "Storme, Isak"]
[Black "Kristiansen, Snorre"]
[Result "1-0"]
[ECO "E06"]
[WhiteElo "2313"]
[BlackElo "1749"]
[Annotator "NA"]
[PlyCount "61"]
[EventDate "2018.??.??"]
[EventCountry "NOR"]
[SourceTitle "playchess.com"]
[Source "ChessBase"]
[SourceQuality "1"]
[TimeControl "40/5400:1800"]

1. Nf3 {[%emt 0:00:04]} d5 {[%emt 0:00:08]} 2. c4 {[%emt 0:00:12]} e6 {[%emt 0:00:32]} 3. d4 {[%emt 0:00:24]} Nf6 {[%emt 0:00:07]} 4. g3 {[%emt 0:00:22]} Be7 {[%emt 0:01:44]} 5. Bg2 {[%emt 0:00:14]} O-O {[%emt 0:01:23]} 6. O-O {[%emt 0:00:08]} b6 {[%emt 0:03:59]} 7. Ne5 {[%emt 0:01:32]} Bb7 {[%emt 0:01:17]} 8. Nc3 {[%emt 0:00:59]} Nbd7 {[%emt 0:03:02]} 9. Qa4 {[%emt 0:00:32]} Nxe5 {[%emt 0:18:00]} 10. dxe5 {[%emt 0:00:09]} Ne8 {[%emt 0:08:49]} 11. cxd5 {[%emt 0:00:52]} exd5 {[%emt 0:06:22]} 12. Nxd5 {[%emt 0:02:48]} Bxd5 {[%emt 0:03:30] LiveBook: 6 Games} 13. Rd1 {[%emt 0:00:54]} c6 {[%emt 0:00:53]} 14. e4 {[%emt 0:00:15]} b5 {[%emt 0:02:19]} 15. Qc2 {[%emt 0:00:53]} Rc8 {[%emt 0:04:40]} 16. Be3 {[%emt 0:03:35]} a6 $2 {[%emt 0:06:21]} (16... Nc7 17. exd5 (17. Bxa7 Qd7 $16) 17... Nxd5) 17. exd5 {[%emt 0:01:51]} cxd5 {[%emt 0:00:22]} 18. Qb3 {[%emt 0:08:39]} Nc7 {[%emt 0:01:30]} 19. a4 {[%emt 0:03:34]} b4 {[%emt 0:07:52]} 20. Bh3 {[%emt 0:07:05]} Rb8 {[%emt 0:02:09]} 21. Rac1 {[%emt 0:01:18]} Rb7 {[%emt 0:04:01]} 22. Rc6 {[%emt 0:03:26]} Qb8 {[%emt 0:02:21]} 23. Rdc1 {[%emt 0:04:04]} Kh8 {[%emt 0:03:07]} 24. Bd4 {[%emt 0:02:11]} a5 {[%emt 0:01:09]} 25. Qe3 {[%emt 0:10:26]} Bd8 {[%emt 0:00:52]} 26. Bf5 {[%emt 0:03:53]} Re8 {[%emt 0:00:54]} 27. Qf3 {[%emt 0:02:01]} Bg5 {[%emt 0:00:39]} 28. Qh5 {[%emt 0:00:32]} Bh6 {[%emt 0:00:53]} 29. Rxh6 {[%emt 0:00:26]} Kg8 {[%emt 0:00:45]} 30. Rxh7 {[%emt 0:00:28]} Kf8 {[%emt 0:00:11]} 31. Bc5+ {[%emt 0:00:31]} 1-0

[Event "NOR-chT 2018"]
[Site "Bergen"]
[Date "2018.05.10"]
[Round "1"]
[White "Diesen, Bruce"]
[Black "Shehzad, Alisha"]
[Result "1-0"]
[ECO "B46"]
[WhiteElo "2161"]
[BlackElo "1669"]
[Annotator "NA"]
[PlyCount "83"]
[EventDate "2018.??.??"]
[EventCountry "NOR"]
[SourceTitle "playchess.com"]
[Source "ChessBase"]
[SourceQuality "1"]
[TimeControl "40/5400:1800"]

1. e4 {[%emt 0:00:13]} c5 {[%emt 0:00:51]} 2. Nf3 {[%emt 0:00:10]} e6 {[%emt 0:00:15]} 3. d4 {[%emt 0:00:12]} cxd4 {[%emt 0:00:05]} 4. Nxd4 {[%emt 0:00:03]} Nc6 {[%emt 0:00:08]} 5. Nc3 {[%emt 0:00:06]} a6 {[%emt 0:00:06]} 6. Be3 {[%emt 0:00:38]} Qc7 {[%emt 0:00:12]} 7. Qd2 {[%emt 0:00:23]} Nf6 {[%emt 0:00:24]} 8. Bd3 {[%emt 0:02:59]} Ne5 {[%emt 0:05:59] B48: Sicilian: Taimanov: 5 Nc3 Qc7 6 Be3 a6 without Be2} 9. f3 {[%emt 0:02:30]} Be7 {[%emt 0:04:19]} 10. O-O-O $146 {[%emt 0:07:10]} ({Predecessor:} 10. f4 Nc4 11. Bxc4 Qxc4 12. Qd3 b5 13. a4 Qxd3 14. cxd3 b4 15. Nce2 O-O 16. h3 Bb7 {0-1 (40) Georgakopoulos,N (2258)-Bosiocic,M (2543) Chalkis 2010}) 10... Nxd3+ {[%emt 0:02:14]} 11. Qxd3 {[%emt 0:01:14]} b5 {[%emt 0:02:24]} 12. g4 {[%emt 0:01:00]} b4 {[%emt 0:02:14]} 13. Na4 {[%emt 0:01:10]} d5 {[%emt 0:02:34]} 14. e5 {[%emt 0:02:18]} Qxe5 {[%emt 0:07:10]} 15. Nc6 {[%emt 0:12:38]} Qc7 {[%emt 0:01:36]} 16. Nxe7 {[%emt 0:00:18]} Qxe7 {[%emt 0:02:26]} 17. Bc5 {[%emt 0:01:08]} Qb7 {[%emt 0:01:56]} 18. Qd4 {[%emt 0:05:32]} Qb5 {[%emt 0:09:15]} 19. b3 $18 {[%emt 0:03:50]} ({And not} 19. Qxb4 Nd7 $11) 19... a5 {[%emt 0:14:10]} 20. Rhe1 {[%emt 0:00:42]} Bb7 {[%emt 0:02:35]} 21. Nb6 {[%emt 0:11:21]} Rd8 {[%emt 0:04:20]} 22. Nc4 {[%emt 0:11:03]} Qa6 {[%emt 0:05:58]} 23. Re5 {[%emt 0:13:17]} Rd7 {[%emt 0:05:33]} 24. Nb6 {[%emt 0:00:44]} Rc7 {[%emt 0:00:34]} 25. g5 {[%emt 0:03:53]} Nd7 {[%emt 0:00:51]} 26. Rxe6+ {[%emt 0:02:59]} fxe6 {[%emt 0:09:35]} 27. Qxg7 {[%emt 0:00:09]} Nxc5 {[%emt 0:00:35]} 28. Qxh8+ {[%emt 0:00:55]} Ke7 {[%emt 0:00:26]} 29. Qg7+ {[%emt 0:00:42]} Kd6 {[%emt 0:00:18]} 30. Qf8+ {[%emt 0:00:03]} Kc6 {[%emt 0:00:24]} 31. Nc4 {[%emt 0:00:04]} Rd7 {[%emt 0:00:18]} 32. Ne5+ {[%emt 0:00:01]} Kc7 {[%emt 0:00:05]} 33. Qxc5+ Kd8 {[%emt 0:00:03]} 34. Qf8+ {[%emt 0:00:04]} Kc7 {[%emt 0:00:01]} 35. Qc5+ {[%emt 0:00:02]} Kd8 {[%emt 0:00:01]} 36. Nxd7 Kxd7 37. Re1 {[%emt 0:00:04]} Kd8 {[%emt 0:00:03]} 38. Qf8+ {[%emt 0:00:02]} Kd7 {[%emt 0:00:01]} 39. Qf7+ {[%emt 0:00:02]} Kc6 {[%emt 0:00:00]} 40. Rxe6+ {[%emt 0:00:00]} Kb5 {[%emt 0:00:02]} 41. Rxa6 {[%emt 0:00:03]} Bxa6 {[%emt 0:00:02]} 42. Qxd5+ 1-0

[Event "NOR-chT 2018"]
[Site "Bergen"]
[Date "2018.05.10"]
[Round "1"]
[White "Holleland, Sigve"]
[Black "Lexander, Harald"]
[Result "1-0"]
[ECO "A14"]
[WhiteElo "2008"]
[BlackElo "1378"]
[Annotator "NA"]
[PlyCount "33"]
[EventDate "2018.??.??"]
[EventCountry "NOR"]
[SourceTitle "playchess.com"]
[Source "ChessBase"]
[SourceQuality "1"]
[TimeControl "40/5400:1800"]

1. c4 {[%emt 0:00:02]} e6 {[%emt 0:00:11]} 2. g3 {[%emt 0:00:15]} d5 {[%emt 0:00:24]} 3. Bg2 {[%emt 0:00:07]} Nf6 {[%emt 0:01:36]} 4. Nf3 {[%emt 0:00:40]} Be7 {[%emt 0:00:13]} 5. O-O {[%emt 0:00:10]} O-O {[%emt 0:00:07]} 6. d4 {[%emt 0:00:36]} c6 {[%emt 0:08:56]} 7. Nc3 {[%emt 0:05:12]} Nbd7 {[%emt 0:02:47]} 8. Bf4 {[%emt 0:01:01]} Ne4 {[%emt 0:10:21]} 9. Qc2 {[%emt 0:06:04]} f5 {[%emt 0:00:28]} 10. Rad1 {[%emt 0:04:15]} g5 {[%emt 0:25:36]} 11. Bc1 {[%emt 0:00:20]} h5 {[%emt 0:12:02]} 12. Qb3 $11 {[%emt 0:09:27]} (12. cxd5 $16 cxd5 13. Nxe4 fxe4 14. Nd2) 12... g4 {[%emt 0:03:08]} 13. Ne1 {[%emt 0:02:09]} h4 {[%emt 0:01:29]} 14. Nd3 {[%emt 0:02:30]} Ng5 {[%emt 0:04:43]} 15. Nf4 {[%emt 0:02:33]} Bd6 {[%emt 0:01:14]} 16. cxd5 {[%emt 0:12:55]} Bxf4 {[%emt 0:03:41]} 17. dxe6 {[%emt 0:03:30]} 1-0

[Event "NOR-chT 2018"]
[Site "Bergen"]
[Date "2018.05.10"]
[Round "1"]
[White "Haugsdal, Arn-Tore"]
[Black "Bjorkly, Sara Marie Skaug"]
[Result "1-0"]
[ECO "B01"]
[WhiteElo "1987"]
[BlackElo "1343"]
[Annotator "NA"]
[PlyCount "71"]
[EventDate "2018.??.??"]
[EventCountry "NOR"]
[SourceTitle "playchess.com"]
[Source "ChessBase"]
[SourceQuality "1"]
[TimeControl "40/5400:1800"]

1. e4 {[%emt 0:00:08]} d5 {[%emt 0:00:06]} 2. exd5 {[%emt 0:00:11]} Nf6 {[%emt 0:00:09]} 3. Bb5+ {[%emt 0:00:53]} Bd7 {[%emt 0:03:22]} 4. Bc4 {[%emt 0:00:22]} c6 {[%emt 0:00:48]} 5. Nc3 {[%emt 0:01:19]} Bg4 {[%emt 0:01:49]} 6. f3 {[%emt 0:01:14]} Bh5 {[%emt 0:00:29]} 7. g4 {[%emt 0:09:42]} Bg6 {[%emt 0:01:56]} 8. h4 {[%emt 0:00:28]} h6 {[%emt 0:03:11]} 9. Nge2 {[%emt 0:11:12]} Nxd5 {[%emt 0:03:54]} 10. d4 {[%emt 0:02:38]} e6 {[%emt 0:02:50]} 11. Nf4 {[%emt 0:04:53]} Nxc3 {[%emt 0:05:48]} 12. bxc3 {[%emt 0:00:31]} Bh7 {[%emt 0:00:48]} 13. Qe2 {[%emt 0:02:05]} Be7 {[%emt 0:09:02]} 14. g5 {[%emt 0:11:10]} Bf5 $16 {[%emt 0:06:22]} (14... Qa5 $14 15. Bd2 Nd7) 15. Nh5 {[%emt 0:11:06]} hxg5 {[%emt 0:19:13]} 16. Nxg7+ {[%emt 0:02:07]} Kd7 {[%emt 0:04:16]} 17. Nxf5 {[%emt 0:06:28]} exf5 {[%emt 0:00:23]} 18. Bxf7 {[%emt 0:04:03]} Qf8 {[%emt 0:03:04]} 19. Qe6+ {[%emt 0:01:30]} Kc7 {[%emt 0:00:55]} 20. h5 {[%emt 0:03:53]} Rh6 {[%emt 0:05:24]} 21. Bg6 {[%emt 0:00:12]} f4 {[%emt 0:00:27]} 22. Bb2 {[%emt 0:03:22]} Nd7 {[%emt 0:00:26]} 23. O-O-O {[%emt 0:00:26]} Nb6 {[%emt 0:02:59]} 24. c4 {[%emt 0:00:26]} Ba3 {[%emt 0:00:56]} 25. Qe5+ {[%emt 0:01:34]} Qd6 {[%emt 0:03:18]} 26. Bxa3 {[%emt 0:00:12]} Qxe5 {[%emt 0:01:01]} 27. dxe5 {[%emt 0:00:08]} Nxc4 {[%emt 0:00:37]} 28. Be7 {[%emt 0:00:15]} Rhh8 {[%emt 0:01:48]} 29. Bxg5 {[%emt 0:00:14]} Rhf8 {[%emt 0:01:45]} 30. e6 {[%emt 0:00:59]} Nd6 {[%emt 0:00:28]} 31. e7 {[%emt 0:00:32]} Rg8 {[%emt 0:00:28]} 32. Bxf4 {[%emt 0:00:13]} Kd7 {[%emt 0:00:56]} 33. Rhe1 {[%emt 0:00:09]} Rxg6 {[%emt 0:00:14]} 34. hxg6 {[%emt 0:00:09]} Rg8 {[%emt 0:00:02]} 35. Rxd6+ {[%emt 0:00:09]} Ke8 {[%emt 0:00:02]} 36. Rd8# 1-0

[Event "NOR-chT 2018"]
[Site "Bergen"]
[Date "2018.05.10"]
[Round "1"]
[White "Eliseev, Sergey"]
[Black "Hammerstad, Asmund"]
[Result "0-1"]
[ECO "C00"]
[WhiteElo "1685"]
[BlackElo "2211"]
[Annotator "NA"]
[PlyCount "78"]
[EventDate "2018.??.??"]
[EventCountry "NOR"]
[SourceTitle "playchess.com"]
[Source "ChessBase"]
[SourceQuality "1"]
[TimeControl "40/5400:1800"]

1. e4 {[%emt 0:00:03]} e6 {[%emt 0:00:11]} 2. d4 {[%emt 0:00:08]} d5 {[%emt 0:00:14]} 3. Bd3 {[%emt 0:00:07]} c5 {[%emt 0:01:07]} 4. Be3 {[%emt 0:18:25]} cxd4 {[%emt 0:01:53]} 5. Bb5+ {[%emt 0:07:56]} Bd7 {[%emt 0:02:14]} 6. Bxd7+ {[%emt 0:01:33]} Qxd7 {[%emt 0:01:42]} 7. Qxd4 {[%emt 0:08:54]} Nc6 {[%emt 0:00:51]} 8. Qa4 {[%emt 0:15:03]} Nb4 {[%emt 0:07:48]} 9. Qxd7+ {[%emt 0:07:13]} Kxd7 {[%emt 0:00:18]} 10. Na3 {[%emt 0:00:03]} dxe4 {[%emt 0:10:05]} (10... Nf6 $17 11. exd5 Nbxd5) 11. O-O-O+ {[%emt 0:00:15]} Kc6 {[%emt 0:00:43] [#]} (11... Ke8 $15 {stays ahead.}) 12. Nc4 $1 {[%emt 0:04:04]} f6 {[%emt 0:00:39]} 13. Ne2 {[%emt 0:00:06]} Nd5 {[%emt 0:17:54]} 14. Nd4+ {[%emt 0:06:11]} Kd7 {[%emt 0:00:29]} 15. Nb5 {[%emt 0:01:51]} b6 {[%emt 0:09:19]} 16. Bxb6 {[%emt 0:02:25]} axb6 {[%emt 0:03:23]} 17. Nxb6+ {[%emt 0:00:03]} Kc6 {[%emt 0:00:20]} 18. Nxa8 {[%emt 0:00:17]} Kxb5 {[%emt 0:00:22]} 19. Rhe1 {[%emt 0:04:44]} f5 {[%emt 0:00:29]} 20. Rd4 {[%emt 0:00:52]} Ngf6 {[%emt 0:07:01]} 21. Red1 $2 {[%emt 0:03:24]} (21. c4+ Kc5 22. Red1) 21... Bc5 {[%emt 0:02:45]} 22. c4+ {[%emt 0:00:24]} Ka6 {[%emt 0:00:29]} 23. cxd5 {[%emt 0:00:20]} Bxd4 {[%emt 0:00:14]} 24. Rxd4 {[%emt 0:00:36]} Rxa8 {[%emt 0:00:17]} 25. Ra4+ {[%emt 0:00:05]} Kb7 {[%emt 0:00:10]} 26. Rxa8 {[%emt 0:00:13]} Kxa8 {[%emt 0:00:09]} 27. dxe6 {[%emt 0:00:04]} Kb7 {[%emt 0:02:18]} 28. a4 {[%emt 0:00:31]} Kc6 {[%emt 0:00:44]} 29. a5 {[%emt 0:01:22]} Nd5 {[%emt 0:01:41]} 30. Kc2 {[%emt 0:00:31]} Kb5 {[%emt 0:01:06]} 31. Kb3 {[%emt 0:00:55]} Kxa5 {[%emt 0:05:29]} 32. Kc4 {[%emt 0:00:07]} Nc7 {[%emt 0:00:17]} 33. e7 {[%emt 0:00:18]} Kb6 {[%emt 0:00:07]} 34. Kd4 $19 {[%emt 0:00:00]} Kc6 {[%emt 0:00:16]} 35. Ke5 {[%emt 0:00:01]} g6 36. h4 Kd7 {[%emt 0:00:37]} 37. Kf6 {[%emt 0:00:05]} f4 {[%emt 0:00:17]} 38. h5 {[%emt 0:00:27]} gxh5 {[%emt 0:00:19]} 39. Kg5 {[%emt 0:00:01]} e3 {[%emt 0:00:19]} 0-1

[Event "NOR-chT 2018"]
[Site "Bergen"]
[Date "2018.05.10"]
[Round "1"]
[White "Cithu, Arun Vijay"]
[Black "Risting, Eivind Olav"]
[Result "0-1"]
[ECO "B10"]
[WhiteElo "1430"]
[BlackElo "2297"]
[Annotator "NA"]
[PlyCount "74"]
[EventDate "2018.??.??"]
[EventCountry "NOR"]
[SourceTitle "playchess.com"]
[Source "ChessBase"]
[SourceQuality "1"]
[TimeControl "40/5400:1800"]

1. e4 {[%emt 0:00:07]} c6 {[%emt 0:00:05]} 2. Nf3 {[%emt 0:00:27]} d5 {[%emt 0:00:14]} 3. exd5 {[%emt 0:00:30]} cxd5 {[%emt 0:00:08]} 4. d4 {[%emt 0:00:08]} Nc6 {[%emt 0:00:03]} 5. Bd3 {[%emt 0:02:39]} Bg4 {[%emt 0:01:07]} 6. c3 {[%emt 0:00:46]} e6 {[%emt 0:00:23]} 7. O-O {[%emt 0:03:24]} Nf6 {[%emt 0:00:47]} 8. Bg5 {[%emt 0:00:48]} Be7 {[%emt 0:00:51]} 9. Nbd2 {[%emt 0:00:43]} O-O {[%emt 0:00:13]} 10. Qc2 {[%emt 0:03:56] B13: Caro-Kann: Exchange Variation and Panov-Botvinnik Attack} (10. Re1 Bh5 11. Qe2 Qc7 12. Bh4 a6 13. a4 Rab8 14. h3 Rfe8 15. Qe3 Bg6 16. Bxg6 hxg6 17. Bg3 Bd6 {1-0 (72) Radjabov,T (2724)-Matlakov,M (2689) Dubai 2014}) 10... h6 {[%emt 0:00:10]} 11. Bxf6 {[%emt 0:06:17]} Bxf6 {[%emt 0:00:23]} 12. Rfe1 $146 {[%emt 0:02:57]} ({Predecessor:} 12. h3 Bxf3 13. Nxf3 Rc8 14. Qe2 Re8 15. Bc2 a6 16. Qd3 g6 {½-½ (16) Violla Cunha,M (2322)-Cunha,E (2406) Rio de Janeiro 2015}) 12... Rc8 {[%emt 0:00:22]} 13. h3 {[%emt 0:00:43]} Bxf3 {[%emt 0:00:11]} 14. Nxf3 {[%emt 0:00:10]} Nxd4 {[%emt 0:00:23]} 15. Nxd4 {[%emt 0:02:42]} Bxd4 {[%emt 0:00:06]} 16. Qe2 {[%emt 0:01:14]} Bb6 {[%emt 0:00:29]} 17. Rad1 {[%emt 0:00:44]} Qf6 {[%emt 0:00:46]} 18. Bc2 {[%emt 0:04:46]} Rc4 {[%emt 0:00:57]} 19. Qf1 {[%emt 0:07:14]} h5 {[%emt 0:03:14]} 20. Rd3 {[%emt 0:06:25]} Rf4 {[%emt 0:00:33]} 21. Re2 {[%emt 0:02:11]} h4 {[%emt 0:00:14]} 22. g3 {[%emt 0:04:14]} (22. Rd1 $17) 22... hxg3 {[%emt 0:01:13]} 23. Rxg3 {[%emt 0:00:25]} g6 {[%emt 0:01:21]} 24. Qg2 {[%emt 0:01:13]} Kg7 {[%emt 0:00:14]} 25. Rg4 {[%emt 0:02:22]} Rh8 {[%emt 0:01:06]} 26. Qg3 {[%emt 0:05:33]} (26. Bd1 $142 Rxg4 27. hxg4) 26... Rf3 {[%emt 0:01:05]} 27. Qe5 {[%emt 0:08:59]} Qxe5 {[%emt 0:00:27]} 28. Rxe5 {[%emt 0:00:26]} Rxf2 {[%emt 0:00:13]} 29. Bd1 {[%emt 0:02:45]} Re2+ {[%emt 0:01:14]} 30. Kf1 {[%emt 0:00:22]} Rxe5 {[%emt 0:00:06]} 31. Rg3 {[%emt 0:01:48]} Rh4 {[%emt 0:00:27]} 32. Kg2 $19 {[%emt 0:00:51]} Re1 {[%emt 0:00:40]} 33. Bf3 {[%emt 0:00:21]} Rf4 {[%emt 0:00:46]} 34. Kh2 {[%emt 0:00:36]} e5 {[%emt 0:00:33]} 35. Bxd5 {[%emt 0:02:10]} e4 {[%emt 0:00:06]} 36. Rg2 {[%emt 0:00:45]} Rff1 {[%emt 0:00:22]} 37. Bxb7 {[%emt 0:00:56]} Bc7+ {[%emt 0:00:15]} 0-1

[Event "NOR-chT 2018"]
[Site "Bergen"]
[Date "2018.05.10"]
[Round "1"]
[White "Mongstad, Dag"]
[Black "Gundersen, Helge"]
[Result "0-1"]
[ECO "C10"]
[WhiteElo "1384"]
[BlackElo "2087"]
[Annotator "NA"]
[PlyCount "42"]
[EventDate "2018.??.??"]
[EventCountry "NOR"]
[SourceTitle "playchess.com"]
[Source "ChessBase"]
[SourceQuality "1"]
[TimeControl "40/5400:1800"]

1. e4 {[%emt 0:00:04]} e6 {[%emt 0:00:06]} 2. d4 {[%emt 0:00:06]} d5 {[%emt 0:00:04]} 3. Nd2 {[%emt 0:00:06]} dxe4 {[%emt 0:00:04]} 4. Nxe4 {[%emt 0:00:17]} Qd5 {[%emt 0:00:06] LiveBook: 106 Games} ({Better is} 4... Nd7 $14) 5. Nf3 {[%emt 0:01:30]} Qxe4+ {[%emt 0:00:08]} 6. Be2 {[%emt 0:00:20]} Nf6 {[%emt 0:02:07]} 7. O-O {[%emt 0:01:30]} Be7 {[%emt 0:01:53]} 8. Re1 {[%emt 0:03:10]} O-O {[%emt 0:01:24]} 9. Ne5 {[%emt 0:04:45]} c5 {[%emt 0:05:33]} 10. c3 {[%emt 0:03:07]} cxd4 {[%emt 0:01:36]} 11. Bf3 {[%emt 0:02:33]} Qf5 {[%emt 0:00:38]} 12. g4 {[%emt 0:00:29]} Nxg4 {[%emt 0:00:06]} 13. Bxg4 {[%emt 0:00:45]} Qf6 {[%emt 0:00:06]} 14. Bh5 {[%emt 0:04:09]} dxc3 {[%emt 0:01:32]} 15. Ng4 {[%emt 0:01:00]} Qh4 {[%emt 0:05:15]} 16. Re4 $19 {[%emt 0:01:05]} (16. bxc3 Nc6 17. Ne3) 16... Kh8 {[%emt 0:04:50]} 17. Bh6 {[%emt 0:08:25]} Qxh5 {[%emt 0:04:24]} 18. Bxg7+ {[%emt 0:05:42]} Kxg7 {[%emt 0:00:26]} 19. Qd4+ {[%emt 0:01:23]} f6 {[%emt 0:00:46]} 20. Nh6 {[%emt 0:09:27]} e5 {[%emt 0:02:55]} 21. Rg4+ {[%emt 0:03:16]} Bxg4 {[%emt 0:00:21]} 0-1